bitfinex/quotes_SOLUSD_20251119
["timestamp","ask_amount","ask_price","bid_price","bid_amount"]
[1763535712233,4.26,139.4,139.38,3.97539449]
[1763535712538,4.26,139.39,139.38,3.97539449]
[1763535714622,4.26,139.39,139.38,0.67]
[1763535715435,4.26,139.39,139.37,13.09422218]
[1763535715637,4.26,139.39,139.37,13.76422218]
[1763535715937,4.26,139.39,139.38,0.67]
[1763535717656,4.26,139.39,139.38,32.08398825]
[1763535719858,4.02539449,139.42,139.39,9.78882769]
[1763535720062,4.26,139.41,139.39,9.78882769]
[1763535720557,0.2,139.45,139.39,13.09422218]
[1763535720558,4.26,139.4,139.39,13.09422218]
[1763535720762,4.02539449,139.43,139.39,13.09422218]
[1763535720973,4.02539449,139.43,139.39,9.78882769]
[1763535720974,3.82,139.4,139.39,9.78882769]
[1763535721458,4.02539449,139.43,139.39,10.45882769]
[1763535721664,4.26,139.4,139.39,10.45882769]
[1763535722257,4.26,139.4,139.39,9.78882769]
[1763535722559,4.26,139.4,139.39,10.45882769]
[1763535722760,0.72,139.44,139.39,13.76422218]
[1763535722973,4.02539449,139.44,139.4,0.67]
[1763535723274,3.86,139.43,139.4,0.67]
[1763535723566,0.2,139.45,139.43,9.78882769]
[1763535723751,4.46,139.45,139.43,13.09422218]
[1763535723947,4.46,139.45,139.43,13.76422218]
[1763535724259,0.2,139.45,139.43,13.76422218]
[1763535724469,0.2,139.45,139.43,10.45882769]
[1763535725842,0.2,139.45,139.44,13.76422218]
[1763535726339,0.2,139.46,139.44,23.01609967]
[1763535726534,0.2,139.46,139.45,19.71070518]
[1763535726753,0.1,139.47,139.45,13.76422218]
[1763535726962,0.1,139.47,139.46,10.45882769]
[1763535727262,0.1,139.47,139.46,13.76422218]
[1763535728046,0.1,139.47,139.46,9.78882769]
[1763535728257,0.82,139.47,139.46,9.78882769]
[1763535728554,0.1,139.47,139.46,9.78882769]
[1763535731167,0.1,139.47,139.46,12.57091862]
[1763535731467,0.2,139.48,139.47,9.78882769]
[1763535731674,0.2,139.48,139.47,12.57091862]
[1763535731840,3.03209093,139.53,139.47,12.57091862]
[1763535732039,0.92,139.53,139.49,11.90091862]
[1763535732347,0.2,139.53,139.49,11.90091862]
[1763535732677,0.2,139.53,139.5,0.68]
[1763535732881,0.92,139.53,139.5,0.68]
[1763535733080,0.92,139.53,139.49,12.58091862]
[1763535733259,3.03209093,139.53,139.49,11.90091862]
[1763535733459,0.92,139.53,139.51,9.78882769]
[1763535734599,0.2,139.53,139.51,9.78882769]
[1763535734955,0.2,139.53,139.52,9.78882769]
[1763535738285,0.2,139.53,139.52,10.46882769]
[1763535740382,0.2,139.53,139.52,9.78882769]
[1763535741587,0.2,139.53,139.52,10.46882769]
[1763535741964,0.2,139.53,139.52,12.58091862]
[1763535742165,0.2,139.53,139.52,10.46882769]
[1763535744597,0.2,139.53,139.52,12.58091862]
[1763535746388,0.2,139.54,139.53,9.78882769]
[1763535746895,0.2,139.54,139.53,10.44882769]
[1763535750577,0.2,139.54,139.52,10.44882769]
[1763535750779,0.2,139.54,139.53,0.66]
[1763535751895,3.02209093,139.54,139.49,9.78882769]
[1763535752209,3.02209093,139.54,139.46,4.24]
[1763535752210,2.11209093,139.5,139.46,4.24]
[1763535752379,2.11209093,139.49,139.46,4.24]
[1763535752574,2.11209093,139.49,139.47,9.78882769]
[1763535753006,2.11209093,139.49,139.47,10.44882769]
[1763535753883,2.11209093,139.5,139.47,10.44882769]
[1763535754584,2.11209093,139.52,139.49,9.78882769]
[1763535755098,0.91,139.54,139.49,0.66]
[1763535755308,2.11209093,139.52,139.49,0.66]
[1763535755806,20.94305093,139.52,139.49,0.66]
[1763535755999,18.12096,139.52,139.49,7.01209093]
[1763535756380,18.12096,139.52,139.5,10.44882769]
[1763535757600,18.12096,139.52,139.51,0.66]
[1763535757803,18.12096,139.52,139.5,10.44882769]
[1763535758116,0.2,139.54,139.52,9.78882769]
[1763535758282,18.32096,139.54,139.52,9.78882769]
[1763535758484,18.32096,139.54,139.52,10.44882769]
[1763535758712,0.2,139.54,139.52,0.66]
[1763535759991,0.2,139.54,139.52,2.77209093]
[1763535760515,0.2,139.54,139.53,10.44882769]
[1763535761592,0.2,139.54,139.53,13.27761037]
[1763535762080,0.2,139.56,139.54,12.56091862]
[1763535762280,0.2,139.56,139.55,16.14091862]
[1763535762483,0.2,139.56,139.55,14.71882769]
[1763535762713,0.2,139.56,139.55,16.14091862]
[1763535763216,0.2,139.56,139.55,16.83091862]
[1763535763619,0.2,139.56,139.55,9.78882769]
[1763535763803,0.2,139.56,139.55,14.02882769]
[1763535763999,0.2,139.56,139.55,16.14091862]
[1763535764724,0.2,139.56,139.55,16.83091862]
[1763535766429,0.2,139.56,139.55,14.02882769]
[1763535766732,0.2,139.56,139.55,16.83091862]
[1763535767033,0.2,139.56,139.55,14.02882769]
[1763535767239,0.88,139.56,139.55,9.78882769]
[1763535767408,0.88,139.56,139.55,14.02882769]
[1763535767735,2.99209093,139.56,139.55,14.02882769]
[1763535768205,2.99209093,139.56,139.55,9.78882769]
[1763535768741,0.88,139.56,139.55,9.78882769]
[1763535768921,2.99209093,139.56,139.55,9.78882769]
[1763535769120,0.88,139.56,139.55,9.78882769]
[1763535769316,2.99209093,139.56,139.55,9.78882769]
[1763535771065,0.2,139.56,139.55,9.78882769]
[1763535771365,0.2,139.56,139.55,13.98361172]
[1763535772151,0.2,139.56,139.55,14.67361172]
[1763535772328,0.2,139.56,139.55,13.98361172]
[1763535774539,0.2,139.56,139.55,14.67361172]
[1763535775335,0.2,139.56,139.55,13.98361172]
[1763535775736,0.88,139.56,139.55,13.98361172]
[1763535776346,0.2,139.56,139.55,13.98361172]
[1763535776932,0.2,139.56,139.55,22.0375924]
[1763535777233,0.2,139.56,139.55,22.7275924]
[1763535777679,0.1,139.57,139.56,9.78882769]
[1763535777853,0.1,139.57,139.56,12.59091862]
[1763535778049,0.1,139.58,139.56,12.59091862]
[1763535778378,0.1,139.58,139.57,22.77919865]
[1763535779454,0.1,139.58,139.57,20.66710772]
[1763535779668,0.1,139.58,139.57,22.77919865]
[1763535780671,0.1,139.6,139.57,22.77919865]
[1763535780672,0.1,139.6,139.58,9.78882769]
[1763535780881,0.1,139.6,139.59,22.08919865]
[1763535781041,0.1,139.63,139.6,9.78882769]
[1763535781241,0.1,139.63,139.62,11.90091862]
[1763535781442,0.1,139.63,139.62,12.59091862]
[1763535781657,0.1,139.63,139.62,10.47882769]
[1763535782242,0.1,139.65,139.62,10.47882769]
[1763535782443,2.11209093,139.64,139.63,14.02882769]
[1763535782690,2.79209093,139.64,139.63,14.02882769]
[1763535783183,2.79209093,139.64,139.63,35.10309997]
[1763535783363,2.11209093,139.64,139.63,35.10309997]
[1763535784875,2.79209093,139.64,139.63,35.10309997]
[1763535785056,2.11209093,139.64,139.63,35.10309997]
[1763535785370,2.79209093,139.64,139.63,35.10309997]
[1763535786054,2.11209093,139.64,139.63,35.10309997]
[1763535786772,18.90096,139.65,139.63,35.10309997]
[1763535787071,2.11209093,139.64,139.63,35.10309997]
[1763535787471,18.22096,139.65,139.63,35.10309997]
[1763535787673,18.22096,139.65,139.64,9.78882769]
[1763535787875,20.33305093,139.65,139.64,9.78882769]
[1763535788671,21.01305093,139.65,139.64,9.78882769]
[1763535790974,0.78,139.65,139.64,9.78882769]
[1763535791158,4.07274897,139.65,139.64,9.78882769]
[1763535791472,4.07274897,139.65,139.52,24.89274897]
[1763535791473,22.19370897,139.65,139.62,9.78882769]
[1763535791678,21.41370897,139.63,139.62,14.02882769]
[1763535792050,22.09370897,139.63,139.62,14.02882769]
[1763535792270,3.97274897,139.63,139.62,14.02882769]
[1763535793173,3.29274897,139.63,139.62,14.02882769]
[1763535793565,3.99274897,139.63,139.62,14.02882769]
[1763535793962,3.29274897,139.63,139.62,14.02882769]
[1763535794371,3.99274897,139.63,139.62,14.02882769]
[1763535796863,3.99274897,139.63,139.62,9.78882769]
[1763535797074,3.99274897,139.63,139.6,4.24]
[1763535797275,3.29274897,139.61,139.59,4.24]
[1763535797569,3.29274897,139.6,139.59,4.24]
[1763535800654,3.29274897,139.6,139.59,25.87783193]
[1763535801067,3.29274897,139.61,139.6,9.78882769]
[1763535801272,3.29274897,139.61,139.6,10.46882769]
[1763535802165,3.29274897,139.61,139.6,9.78882769]
[1763535802986,3.29274897,139.61,139.6,10.48882769]
[1763535803295,3.29274897,139.62,139.6,10.48882769]
[1763535803586,3.29274897,139.64,139.61,14.72882769]
[1763535803974,3.29274897,139.64,139.63,9.78882769]
[1763535804161,3.29274897,139.64,139.63,14.02882769]
[1763535806668,0.1,139.65,139.63,14.02882769]
[1763535806986,0.1,139.65,139.64,10.48882769]
[1763535807187,0.1,139.68,139.65,9.78882769]
[1763535807364,0.1,139.68,139.67,9.78882769]
[1763535807882,0.1,139.68,139.67,10.48882769]
[1763535811692,3.39274897,139.68,139.67,10.48882769]
[1763535812889,3.39274897,139.68,139.67,9.78882769]
[1763535813293,3.39274897,139.68,139.67,10.48882769]
[1763535814482,3.39274897,139.68,139.67,9.78882769]
[1763535814683,3.39274897,139.68,139.67,10.48882769]
[1763535814886,3.39274897,139.68,139.67,9.78882769]
[1763535815404,0.1,139.68,139.67,9.78882769]
[1763535815805,3.39274897,139.68,139.67,9.78882769]
[1763535817203,0.1,139.68,139.67,9.78882769]
[1763535817409,3.39274897,139.68,139.67,9.78882769]
[1763535818611,3.39274897,139.68,139.67,10.48882769]
[1763535818905,3.39274897,139.68,139.67,9.78882769]
[1763535819999,4.06274897,139.68,139.65,9.78882769]
[1763535820206,0.1,139.68,139.66,4.24]
[1763535820510,0.67,139.67,139.66,4.24]
[1763535821297,3.96274897,139.67,139.66,4.24]
[1763535822090,3.29274897,139.67,139.66,4.24]
[1763535824911,3.97274897,139.67,139.66,4.24]
[1763535825087,3.29274897,139.67,139.66,4.24]
[1763535827191,3.97274897,139.67,139.66,4.24]
[1763535827719,3.97274897,139.67,139.62,9.78882769]
[1763535828014,3.29274897,139.63,139.62,14.02882769]
[1763535828810,3.29274897,139.63,139.62,14.69882769]
[1763535829115,3.29274897,139.63,139.62,14.02882769]
[1763535829313,3.29274897,139.63,139.62,4.24]
[1763535832917,3.47274897,139.63,139.62,4.24]
[1763535833088,2.79274897,139.63,139.62,4.24]
[1763535833298,3.29274897,139.63,139.62,4.24]
[1763535833502,3.29274897,139.63,139.62,4.91]
[1763535834607,3.29274897,139.64,139.62,4.91]
[1763535834791,3.29274897,139.64,139.63,10.45882769]
[1763535836521,3.29274897,139.64,139.63,9.78882769]
[1763535837303,3.29274897,139.64,139.63,10.45882769]
[1763535839225,0.68,139.67,139.64,9.78882769]
[1763535839423,3.29274897,139.65,139.64,14.02882769]
[1763535841430,3.97274897,139.65,139.6,0.67]
[1763535841728,0.68,139.64,139.61,14.02882769]
[1763535842026,3.29274897,139.62,139.61,14.02882769]
[1763535842417,3.29274897,139.62,139.61,14.69882769]
[1763535842604,3.29274897,139.62,139.61,14.02882769]
[1763535843030,3.97274897,139.62,139.61,14.02882769]
[1763535843402,3.29274897,139.62,139.61,14.02882769]
[1763535844127,3.29274897,139.62,139.61,14.69882769]
[1763535844331,3.39274897,139.68,139.61,14.69882769]
[1763535844332,0.1,139.68,139.61,14.69882769]
[1763535844631,3.29274897,139.64,139.63,9.78882769]
[1763535844814,3.29274897,139.64,139.63,14.02882769]
[1763535846717,3.29274897,139.64,139.63,14.69882769]
[1763535848011,18.80096,139.66,139.63,14.69882769]
[1763535848206,3.29274897,139.64,139.63,14.69882769]
[1763535848833,18.80096,139.66,139.63,14.69882769]
[1763535848834,18.80096,139.66,139.63,4.91]
[1763535849136,3.29274897,139.64,139.63,14.69882769]
[1763535850419,0.68,139.67,139.64,9.78882769]
[1763535850626,18.12096,139.66,139.65,4.24]
[1763535851117,0.1,139.68,139.65,14.69882769]
[1763535851309,0.1,139.68,139.67,9.78882769]
[1763535851511,0.1,139.68,139.67,14.02882769]
[1763535851735,0.1,139.68,139.67,14.69882769]
[1763535851910,3.39274897,139.68,139.67,14.69882769]
[1763535852421,0.1,139.69,139.67,14.69882769]
[1763535852637,3.29274897,139.68,139.67,14.02882769]
[1763535852841,2.10660762,139.68,139.67,14.02882769]
[1763535853049,2.81660762,139.68,139.67,14.02882769]
[1763535853354,2.10660762,139.68,139.67,14.02882769]
[1763535854760,2.10660762,139.68,139.67,14.74882769]
[1763535856226,11.2430381,139.68,139.65,0.72]
[1763535856428,2.10660762,139.66,139.65,4.96]
[1763535856637,2.10660762,139.66,139.65,0.72]
[1763535857064,12.0530381,139.69,139.64,4.24]
[1763535857360,12.0530381,139.69,139.64,4.96]
[1763535857361,2.10660762,139.65,139.64,4.96]
[1763535858956,2.10660762,139.65,139.64,0.72]
[1763535859146,20.22756762,139.65,139.63,4.96]
[1763535859451,2.10660762,139.64,139.63,4.96]
[1763535861166,2.10660762,139.64,139.63,4.24]
[1763535861335,2.10660762,139.64,139.63,4.96]
[1763535865233,0.1,139.69,139.63,4.96]
[1763535865450,0.1,139.69,139.64,10.48882769]
[1763535865451,2.10660762,139.65,139.64,10.48882769]
[1763535865954,18.12096,139.66,139.64,10.48882769]
[1763535866143,2.10660762,139.65,139.64,9.78882769]
[1763535866658,2.10660762,139.67,139.65,9.78882769]
[1763535866847,2.10660762,139.67,139.66,4.24]
[1763535867049,18.22096,139.69,139.66,4.94]
[1763535867252,18.22096,139.69,139.66,14.02882769]
[1763535867439,2.10660762,139.67,139.66,14.02882769]
[1763535867761,18.22096,139.69,139.67,0.7]
[1763535867962,2.10660762,139.68,139.67,0.7]
[1763535868161,20.22756762,139.68,139.67,0.7]
[1763535868738,18.12096,139.68,139.67,0.7]
[1763535868945,20.22756762,139.68,139.67,0.7]
[1763535869162,18.12096,139.68,139.67,0.7]
[1763535869463,20.22756762,139.68,139.67,0.7]
[1763535870159,18.12096,139.68,139.67,0.7]
[1763535870336,0.1,139.69,139.67,10.48882769]
[1763535870541,2.20660762,139.69,139.67,0.7]
[1763535870757,2.20660762,139.69,139.68,0.7]
[1763535873042,2.20660762,139.69,139.65,9.78882769]
[1763535873237,0.1,139.69,139.67,9.78882769]
[1763535873663,0.1,139.69,139.68,0.7]
[1763535874043,0.1,139.69,139.67,9.78882769]
[1763535874044,0.1,139.69,139.67,10.48882769]
[1763535874445,2.10660762,139.68,139.67,10.48882769]
[1763535878052,2.10660762,139.68,139.67,9.78882769]
[1763535878254,2.10660762,139.68,139.67,10.48882769]
[1763535878777,0.1,139.69,139.67,12.59543531]
[1763535879084,0.1,139.69,139.68,0.7]
[1763535879574,2.20660762,139.69,139.68,4.94]
[1763535880071,2.20660762,139.69,139.68,4.24]
[1763535880261,2.20660762,139.69,139.68,14.02882769]
[1763535880455,2.20660762,139.69,139.68,14.72882769]
[1763535880657,0.1,139.69,139.68,14.72882769]
[1763535880852,2.20660762,139.69,139.68,14.72882769]
[1763535882868,0.1,139.69,139.68,14.72882769]
[1763535885661,2.20660762,139.69,139.68,14.72882769]
[1763535886262,0.1,139.69,139.68,14.72882769]
[1763535886586,2.20660762,139.69,139.68,14.72882769]
[1763535887503,0.1,139.69,139.68,14.72882769]
[1763535890862,0.1,139.71,139.69,9.78882769]
[1763535891073,0.1,139.71,139.7,14.02882769]
[1763535891277,2.10660762,139.74,139.71,9.78882769]
[1763535891592,2.10660762,139.74,139.73,9.78882769]
[1763535892174,2.10660762,139.74,139.73,10.47882769]
[1763535892359,0.1,139.78,139.73,10.47882769]
[1763535892360,2.10660762,139.75,139.73,10.47882769]
[1763535892671,2.10660762,139.77,139.75,9.78882769]
[1763535892863,0.1,139.78,139.76,4.24]
[1763535893194,2.10660762,139.77,139.76,4.24]
[1763535893359,0.1,139.78,139.76,4.24]
[1763535893689,2.10660762,139.77,139.76,14.02882769]
[1763535894085,0.1,139.78,139.77,9.78882769]
[1763535894288,0.1,139.78,139.77,10.47882769]
[1763535894491,4.0425385,139.79,139.77,10.47882769]
[1763535894687,2.10660762,139.78,139.77,10.47882769]
[1763535894892,2.10660762,139.78,139.77,14.71882769]
[1763535895270,2.80660762,139.78,139.77,14.02882769]
[1763535895571,2.10660762,139.78,139.77,14.02882769]
[1763535895774,2.10660762,139.78,139.77,4.24]
[1763535896575,1.93593088,139.79,139.78,27.90978769]
[1763535896777,2.10660762,139.82,139.79,9.78882769]
[1763535896986,2.10660762,139.8,139.75,2.10660762]
[1763535897170,2.10660762,139.77,139.76,14.02882769]
[1763535897565,2.10660762,139.77,139.76,4.24]
[1763535899079,2.80660762,139.77,139.72,0.69]
[1763535899279,2.10660762,139.75,139.74,9.78882769]
[1763535899790,2.10660762,139.76,139.74,10.47882769]
[1763535899992,0.7,139.79,139.74,10.47882769]
[1763535900212,2.10660762,139.76,139.74,0.69]
[1763535900580,2.10660762,139.77,139.75,9.78882769]
[1763535900793,2.10660762,139.77,139.76,4.24]
[1763535900984,2.10660762,139.77,139.76,14.02882769]
[1763535901399,2.10660762,139.78,139.76,14.02882769]
[1763535901625,27.24739048,139.8,139.76,14.02882769]
[1763535901808,8.42643048,139.8,139.77,0.69]
[1763535902013,0.1,139.83,139.8,9.78882769]
[1763535902302,0.1,139.83,139.81,4.93]
[1763535902506,2.80660762,139.82,139.78,0.69]
[1763535902704,2.10660762,139.8,139.79,14.02882769]
[1763535902882,0.7,139.82,139.79,14.02882769]
[1763535903080,0.7,139.82,139.74,18.12096]
[1763535903081,0.7,139.82,139.8,4.24]
[1763535903502,2.10660762,139.81,139.8,4.24]
[1763535903703,0.1,139.83,139.81,0.69]
[1763535904013,0.1,139.83,139.82,14.02882769]
[1763535904396,2.20660762,139.83,139.82,14.02882769]
[1763535905216,18.12096,139.87,139.82,14.02882769]
[1763535905423,2.10660762,139.86,139.82,14.02882769]
[1763535905625,2.10660762,139.85,139.83,0.69]
[1763535905921,2.10660762,139.86,139.83,0.69]
[1763535906117,0.7,139.89,139.83,0.69]
[1763535906317,2.10660762,139.87,139.84,9.78882769]
[1763535906612,2.10660762,139.88,139.86,9.78882769]
[1763535906910,8.42643048,139.92,139.86,9.78882769]
[1763535906911,0.7,139.92,139.86,9.78882769]
[1763535907208,2.10660762,139.88,139.86,10.47882769]
[1763535907389,2.10660762,139.87,139.86,21.6497709]
[1763535907585,2.10660762,139.87,139.86,4.24]
[1763535907997,2.80660762,139.87,139.86,4.24]
[1763535908195,2.10660762,139.87,139.86,4.24]
[1763535908719,2.10660762,139.88,139.86,4.24]
[1763535908917,0.7,139.89,139.86,4.24]
[1763535908918,2.10660762,139.87,139.86,4.24]
[1763535909222,0.7,139.9,139.86,4.24]
[1763535909420,0.7,139.91,139.86,4.93]
[1763535909633,2.10660762,139.88,139.79,20.83631874]
[1763535909799,2.10660762,139.88,139.85,9.78882769]
[1763535909999,0.7,139.9,139.86,4.24]
[1763535910216,2.10660762,139.88,139.86,4.24]
[1763535910699,2.10660762,139.89,139.86,25.38918575]
[1763535910897,0.7,139.9,139.86,4.93]
[1763535911128,2.10660762,139.88,139.86,4.93]
[1763535911326,2.10660762,139.87,139.83,0.69]
[1763535911625,26.54739048,139.92,139.83,0.69]
[1763535911626,2.10660762,139.85,139.84,4.24]
[1763535912128,2.80660762,139.85,139.84,4.24]
[1763535912426,2.10660762,139.85,139.84,4.24]
[1763535912822,3.28335512,139.85,139.84,4.24]
[1763535913027,3.99335512,139.85,139.83,4.24]
[1763535913237,3.28335512,139.84,139.83,4.24]
[1763535913730,3.99335512,139.84,139.81,21.89822416]
[1763535913908,0.71,139.84,139.83,4.24]
[1763535914229,3.99335512,139.84,139.83,4.24]
[1763535915209,18.12096,139.86,139.83,4.24]
[1763535915413,3.28335512,139.84,139.83,4.24]
[1763535915822,3.28335512,139.84,139.8,0.66]
[1763535916037,3.28335512,139.84,139.81,4.24]
[1763535916428,18.12096,139.86,139.82,0.66]
[1763535916736,3.28335512,139.85,139.82,0.66]
[1763535917810,18.12096,139.86,139.82,0.66]
[1763535918034,3.28335512,139.85,139.82,0.66]
[1763535918649,3.28335512,139.86,139.82,0.66]
[1763535918808,3.28335512,139.86,139.83,9.78882769]
[1763535919010,3.28335512,139.86,139.84,4.24]
[1763535919206,3.28335512,139.86,139.84,4.9]
[1763535919632,3.99335512,139.85,139.84,4.24]
[1763535919835,3.28335512,139.85,139.84,4.24]
[1763535920237,0.71,139.88,139.84,4.9]
[1763535920735,3.28335512,139.86,139.84,4.9]
[1763535921321,3.28335512,139.86,139.85,0.66]
[1763535921558,3.28335512,139.86,139.84,4.9]
[1763535921915,3.28335512,139.86,139.81,34.85709025]
[1763535921916,3.28335512,139.88,139.85,10.44882769]
[1763535922110,3.28335512,139.88,139.85,14.68882769]
[1763535922445,3.28335512,139.89,139.86,0.66]
[1763535922739,3.28335512,139.87,139.85,14.02882769]
[1763535923340,3.28335512,139.87,139.85,14.68882769]
[1763535923528,3.28335512,139.87,139.86,4.26]
[1763535923921,3.28335512,139.88,139.86,4.26]
[1763535924120,3.28335512,139.88,139.86,4.98]
[1763535925359,0.72,139.9,139.86,4.98]
[1763535925560,18.12096,139.91,139.86,4.26]
[1763535925746,3.28335512,139.9,139.87,0.72]
[1763535925922,3.28335512,139.88,139.87,0.72]
[1763535926251,3.28335512,139.88,139.86,4.26]
[1763535926421,3.28335512,139.87,139.86,14.04882769]
[1763535926618,3.28335512,139.92,139.83,0.72]
[1763535926830,0.72,139.87,139.86,4.26]
[1763535927131,3.28335512,139.87,139.86,4.26]
[1763535927442,4.00335512,139.87,139.86,4.26]
[1763535927844,3.28335512,139.87,139.86,4.26]
[1763535928219,3.28335512,139.87,139.84,0.72]
[1763535928420,3.28335512,139.87,139.85,4.26]
[1763535928826,3.28335512,139.86,139.84,0.72]
[1763535929022,3.28335512,139.86,139.82,9.78882769]
[1763535929023,3.28335512,139.86,139.85,4.26]
[1763535929638,18.84096,139.89,139.85,4.26]
[1763535929837,3.28335512,139.87,139.85,4.26]
[1763535930548,0.72,139.88,139.85,4.26]
[1763535930737,3.28335512,139.87,139.85,4.26]
[1763535930935,3.28335512,139.86,139.85,4.26]
[1763535931141,3.28335512,139.87,139.85,4.26]
[1763535932251,3.28335512,139.86,139.85,4.26]
[1763535932644,4.00335512,139.86,139.85,4.26]
[1763535932828,3.28335512,139.92,139.85,4.26]
[1763535932829,0.72,139.87,139.85,4.26]
[1763535933152,3.28335512,139.86,139.85,4.26]
[1763535933348,3.28335512,139.86,139.81,21.78490744]
[1763535933532,0.72,139.87,139.81,21.78490744]
[1763535933533,3.28335512,139.82,139.81,4.26]
[1763535933734,0.72,139.85,139.82,0.72]
[1763535933735,3.28335512,139.85,139.82,0.72]
[1763535933926,3.28335512,139.84,139.82,0.72]
[1763535934123,3.28335512,139.85,139.82,0.72]
[1763535934328,3.28335512,139.85,139.82,10.50882769]
[1763535934565,3.28335512,139.86,139.83,9.78882769]
[1763535934759,3.28335512,139.86,139.84,4.26]
[1763535934967,3.28335512,139.87,139.84,4.98]
[1763535935254,3.28335512,139.87,139.85,0.72]
[1763535935629,4.00335512,139.88,139.85,0.72]
[1763535935832,3.28335512,139.87,139.84,4.26]
[1763535936032,3.28335512,139.87,139.84,4.98]
[1763535937465,4.00335512,139.87,139.84,4.98]
[1763535937964,3.28335512,139.87,139.84,4.98]
[1763535938149,3.28335512,139.85,139.84,4.26]
[1763535938346,4.00335512,139.86,139.84,4.26]
[1763535938758,4.00335512,139.86,139.82,0.72]
[1763535938957,4.00335512,139.86,139.83,4.26]
[1763535939355,4.00335512,139.86,139.83,4.98]
[1763535939545,3.28335512,139.86,139.83,0.72]
[1763535939765,4.00335512,139.86,139.83,4.98]
[1763535939957,3.28335512,139.85,139.83,4.98]
[1763535940268,3.28335512,139.85,139.81,9.78882769]
[1763535940447,0.72,139.84,139.8,0.72]
[1763535940652,3.28335512,139.83,139.81,4.26]
[1763535941069,3.28335512,139.82,139.81,4.26]
[1763535941376,4.00335512,139.83,139.81,4.26]
[1763535943051,3.94335512,139.82,139.81,4.26]
[1763535943457,3.28335512,139.82,139.81,4.26]
[1763535943746,3.94335512,139.82,139.79,0.72]
[1763535943950,3.94335512,139.82,139.79,4.98]
[1763535944150,3.28335512,139.81,139.79,4.98]
[1763535945171,3.28335512,139.82,139.79,4.26]
[1763535945372,3.28335512,139.82,139.8,0.69]
[1763535945573,3.28335512,139.82,139.79,4.95]
[1763535946654,3.28335512,139.82,139.79,4.26]
[1763535946970,3.28335512,139.81,139.79,4.26]
[1763535947186,3.28335512,139.8,139.79,4.26]
[1763535948082,13.07218281,139.84,139.79,4.26]
[1763535948259,3.28335512,139.8,139.79,4.26]
[1763535950056,18.12096,139.82,139.79,4.26]
[1763535950295,3.28335512,139.81,139.8,0.69]
[1763535951278,3.28335512,139.81,139.79,4.95]
[1763535951867,0.52,139.83,139.79,4.95]
[1763535952064,3.28335512,139.81,139.79,4.95]
[1763535952950,18.64096,139.83,139.79,4.95]
[1763535953152,3.28335512,139.81,139.79,4.95]
[1763535954260,3.28335512,139.8,139.79,4.26]
[1763535955178,3.28335512,139.81,139.79,4.95]
[1763535955787,0.52,139.83,139.79,4.95]
[1763535955961,3.28335512,139.81,139.79,4.95]
[1763535957671,0.52,139.83,139.79,4.26]
[1763535957877,3.28335512,139.81,139.79,4.95]
[1763535958380,3.80335512,139.86,139.8,0.69]
[1763535958688,3.28335512,139.82,139.8,0.69]
[1763535958886,18.64096,139.87,139.8,0.69]
[1763535959071,3.28335512,139.83,139.8,0.69]
[1763535959768,3.28335512,139.82,139.8,0.69]
[1763535960078,3.28335512,139.81,139.8,0.69]
[1763535960283,3.28335512,139.81,139.78,21.9507959]
[1763535960587,3.28335512,139.81,139.76,4.26]
[1763535960588,3.28335512,139.79,139.76,4.26]
[1763535960761,3.28335512,139.78,139.77,4.95]
[1763535961067,0.52,139.79,139.77,25.75817557]
[1763535961387,3.28335512,139.78,139.77,4.26]
[1763535963695,0.52,139.8,139.77,4.26]
[1763535963987,3.28335512,139.78,139.77,4.26]
[1763535964484,0.52,139.8,139.77,4.26]
[1763535964685,3.28335512,139.78,139.77,4.26]
[1763535964997,3.28335512,139.78,139.77,26.12794418]
[1763535965289,3.28335512,139.78,139.77,4.95]
[1763535965460,18.12096,139.81,139.77,4.95]
[1763535965660,3.28335512,139.81,139.78,0.69]